fUST/lending_fUST_20240201
["ID","MTS","AMOUNT","RATE_DAILY","PERIOD"]
[313078975,1706725844239,-862.47,0.00020821,2]
[313078976,1706725844249,-601.31,0.00020821,2]
[313078977,1706725844258,-153.0,0.00020822,2]
[313078979,1706725844267,-1000.0,0.00020925,2]
[313078981,1706725844276,-1000.0,0.00020927,2]
[313078983,1706725844285,-1000.0,0.00020999,2]
[313078985,1706725844295,-309.96435296,0.00021051,2]
[313078986,1706725844304,-208.5258799,0.00021051,2]
[313078988,1706725844313,-157.35798746,0.00021051,2]
[313078990,1706725844322,-24240.98266766,0.00021051,2]
[313078992,1706725844331,-176.65507713,0.00021052,2]
[313078994,1706725844341,-382.45401514,0.00021052,2]
[313078996,1706725844349,-4440.89955556,0.00021052,2]
[313078998,1706725844361,-7183.92467348,0.00021052,2]
[313078999,1706725844372,-2586.59105235,0.00021052,2]
[313079000,1706725844381,-1019.6861479,0.00021053,2]
[313079002,1706725844392,-1475.48612383,0.00021053,2]
[313079003,1706725844401,-1549.08406829,0.00021053,2]
[313079004,1706725844413,-3450.91593171,0.00021053,2]
[313079005,1706725844422,-3116.74406829,0.00021053,2]
[313079006,1706725844433,-1140.89088659,0.00021053,2]
[313079020,1706725844615,-275.52077973,0.00021053,2]
[313079022,1706725844626,-466.84426539,0.00021053,2]
[313079024,1706725844635,-251.13374902,0.00021053,2]
[313079462,1706725851941,155.01550155,0.00022,4]
[313079463,1706725856878,293.91203861,0.00022,4]
[313079464,1706725863230,525.02493625,0.00021051,5]
[313079465,1706725865105,37.57317206,0.0002511,19]
[313079466,1706725867464,282.60239372,0.00019452,20]
[313079467,1706725867806,309.98449845,0.00022,4]
[313079468,1706725878852,294.24986828,0.00022,4]
[313079469,1706725892787,573.74982233,0.00019452,5]
[313079470,1706725926542,1911.92700104,0.00016,5]
[313079485,1706726164569,-155.01550155,0.00018843,3]
[313079486,1706726164602,-185.68380017,0.00018844,2]
[313079487,1706726164621,-155.01550155,0.0001907,2]
[313079488,1706726164634,-185.68380017,0.0001907,2]
[313079489,1706726164646,-3085.60139656,0.0001907,2]
[313079491,1706726217124,-155.01550155,0.00017258,3]
[313079492,1706726217174,-1369.26969518,0.00018297,2]
[313079495,1706726282113,-519.08564378,0.00018297,2]
[313079496,1706726282136,-1878.82871244,0.00018297,2]
[313079499,1706726513485,1570.50220543,0.00029,30]
[313079501,1706726625848,1000.0,0.00021917,5]
[313079540,1706727031633,-250.0,0.00018004,2]
[313079542,1706727031645,-1060.68600045,0.00018382,2]
[313079544,1706727031655,-1588.24777557,0.00018963,2]
[313079878,1706727037771,-18141.16819195,0.00018963,2]
[313079879,1706727037781,-20928.42010266,0.00018964,2]
[313079880,1706727037791,-1000.0,0.00018981,2]
[313079881,1706727037800,-4885.36552173,0.00018984,2]
[313079882,1706727037810,-10000.0,0.00019078,2]
[313079883,1706727037819,-2900.37643633,0.00019078,2]
[313079884,1706727037828,-366.29145913,0.00019176,2]
[313079885,1706727037838,-8120.904127,0.00019176,2]
[313079886,1706727037847,-1996.50298693,0.00019176,2]
[313079887,1706727037856,-243.43578923,0.00019176,2]
[313079888,1706727037865,-155.04960279,0.00019176,2]
[313079889,1706727037874,-500.0,0.00019176,2]
[313079890,1706727037883,-12046.0,0.00019176,2]
[313079891,1706727037893,-1032.02745041,0.00019176,2]
[313079892,1706727037903,-5092.43181338,0.00019176,2]
[313079893,1706727037912,-797.00601576,0.00019177,2]
[313079894,1706727037922,-10555.9279154,0.00019177,2]
[313079895,1706727037931,-500.0,0.00019178,2]
[313079896,1706727037940,-500.0,0.00019178,2]
[313079897,1706727037949,-500.0,0.00019178,2]
[313079898,1706727037958,-500.0,0.00019178,2]
[313079899,1706727037967,-579.96,0.00019178,2]
[313079900,1706727037976,-186.8035473,0.00019178,2]
[313079901,1706727037986,-500.0,0.00019178,2]
[313079902,1706727037995,-500.0,0.00019178,2]
[313079903,1706727038004,-500.0,0.00019178,2]
[313079904,1706727038013,-500.0,0.00019178,2]
[313079905,1706727038022,-500.0,0.00019178,2]
[313079906,1706727038032,-500.0,0.00019178,2]
[313079907,1706727038115,-500.0,0.00019178,2]
[313079908,1706727038147,-529.42,0.00019178,2]
[313079909,1706727038157,-534.97,0.00019178,2]
[313079910,1706727038167,-500.0,0.00019178,2]
[313079911,1706727038176,-500.0,0.00019178,2]
[313079912,1706727038186,-559.94,0.00019178,2]
[313079913,1706727038194,-2548.17,0.00019178,2]
[313079914,1706727038203,-500.0,0.00019178,2]
[313079915,1706727038213,-915.17,0.00019178,2]
[313079916,1706727038222,-500.0,0.00019178,2]
[313079917,1706727038232,-500.0,0.00019178,2]
[313079918,1706727038241,-500.0,0.00019178,2]
[313079919,1706727038251,-513.49269041,0.00019178,2]
[313079920,1706727038260,-500.0,0.00019178,2]
[313079921,1706727038270,-874.19,0.00019178,2]
[313079922,1706727038279,-500.0,0.00019178,2]
[313079923,1706727038288,-500.0,0.00019178,2]
[313079924,1706727038298,-500.0,0.00019178,2]
[313079925,1706727038310,-500.0,0.00019178,2]
[313079926,1706727038319,-500.0,0.00019178,2]
[313079927,1706727038328,-500.0,0.00019178,2]
[313079928,1706727038337,-500.0,0.00019178,2]
[313079929,1706727038348,-500.0,0.00019178,2]
[313079930,1706727038358,-500.0,0.00019178,2]
[313079931,1706727038367,-500.0,0.00019178,2]
[313079932,1706727038377,-500.0,0.00019178,2]
[313079933,1706727038387,-500.0,0.00019178,2]
[313079934,1706727038396,-453.08497735,0.00019178,2]
[313079935,1706727038405,-1024.19,0.00019178,2]
[313079936,1706727038414,-500.0,0.00019178,2]
[313079937,1706727038423,-171.81118109,0.00019178,2]
[313079938,1706727038432,-568.35400767,0.00019178,2]
[313079939,1706727038441,-500.0,0.00019178,2]
[313079940,1706727038452,-500.0,0.00019178,2]
[313079941,1706727038461,-500.0,0.00019178,2]
[313079942,1706727038470,-500.0,0.00019178,2]
[313079943,1706727038479,-500.0,0.00019178,2]
[313079944,1706727038488,-500.0,0.00019178,2]
[313079945,1706727038498,-500.0,0.00019178,2]
[313079946,1706727038507,-500.0,0.00019178,2]
[313079947,1706727038516,-500.0,0.00019178,2]
[313079948,1706727038525,-553.73391012,0.00019178,2]
[313079949,1706727038533,-500.0,0.00019178,2]
[313079950,1706727038542,-500.0,0.00019178,2]
[313079951,1706727038551,-500.0,0.00019178,2]
[313079952,1706727038561,-500.0,0.00019178,2]
[313079953,1706727038569,-867.92,0.00019178,2]
[313079954,1706727038578,-509.16728415,0.00019178,2]
[313079955,1706727038587,-1129.98,0.00019178,2]
[313079956,1706727038596,-592.95,0.00019178,2]
[313079957,1706727038604,-500.0,0.00019178,2]
[313079958,1706727038613,-325.83874545,0.00019178,2]
[313079959,1706727038622,-1598.09,0.00019178,2]
[313079960,1706727038631,-1842.47,0.00019178,2]
[313079961,1706727038640,-500.0,0.00019178,2]
[313079962,1706727038648,-500.0,0.00019178,2]
[313079963,1706727038657,-500.0,0.00019178,2]
[313079964,1706727038667,-500.0,0.00019178,2]
[313079965,1706727038676,-500.0,0.00019178,2]
[313079966,1706727038685,-500.0,0.00019178,2]
[313079967,1706727038694,-1201.57,0.00019178,2]
[313079968,1706727038703,-500.0,0.00019178,2]
[313079969,1706727038712,-500.0,0.00019178,2]
[313079970,1706727038720,-500.0,0.00019178,2]
[313079971,1706727038729,-500.0,0.00019178,2]
[313079972,1706727038738,-500.0,0.00019178,2]
[313079973,1706727038747,-3102.95,0.00019178,2]
[313079974,1706727038756,-500.0,0.00019178,2]
[313079975,1706727038765,-500.0,0.00019178,2]
[313079976,1706727038774,-11937.9,0.00019178,2]
[313079977,1706727038782,-500.0,0.00019178,2]
[313079978,1706727038791,-500.0,0.00019178,2]
[313079979,1706727038800,-500.0,0.00019178,2]
[313079980,1706727038809,-500.0,0.00019178,2]
[313079981,1706727038818,-500.0,0.00019178,2]
[313079982,1706727038827,-1507.24,0.00019178,2]
[313079983,1706727038835,-500.0,0.00019178,2]
[313079984,1706727038844,-500.0,0.00019178,2]
[313079985,1706727038853,-500.0,0.00019178,2]
[313079986,1706727038862,-577.72132354,0.00019178,2]
[313079987,1706727038870,-500.0,0.00019178,2]
[313079988,1706727038879,-500.0,0.00019178,2]
[313079989,1706727038887,-500.0,0.00019178,2]
[313079990,1706727038895,-521.76,0.00019178,2]
[313079991,1706727038907,-1526.78,0.00019178,2]
[313079992,1706727038916,-513.93419891,0.00019178,2]
[313079993,1706727038926,-500.0,0.00019178,2]
[313079994,1706727038934,-6217.69,0.00019178,2]
[313079995,1706727038943,-860.62,0.00019178,2]
[313079996,1706727038952,-500.0,0.00019178,2]
[313079997,1706727038961,-1008.78,0.00019178,2]
[313079998,1706727038971,-2014.55,0.00019178,2]
[313079999,1706727038979,-2387.77,0.00019178,2]
[313080000,1706727038988,-671.64,0.00019178,2]
[313080001,1706727038998,-489.10048454,0.00019178,2]
[313080002,1706727039007,-2186.66,0.00019178,2]
[313080003,1706727039016,-500.0,0.00019178,2]
[313080004,1706727039026,-500.0,0.00019178,2]
[313080005,1706727039036,-6294.19,0.00019178,2]
[313080006,1706727039045,-2546.05,0.00019178,2]
[313080007,1706727039054,-1283.91,0.00019178,2]
[313080008,1706727039063,-500.0,0.00019178,2]
[313080009,1706727039073,-500.0,0.00019178,2]
[313080010,1706727039082,-942.49,0.00019178,2]
[313080011,1706727039091,-595.43,0.00019178,2]
[313080012,1706727039100,-372.85777824,0.00019178,2]
[313080013,1706727039109,-1069.46,0.00019178,2]
[313080014,1706727039119,-500.0,0.00019178,2]
[313080015,1706727039127,-9217.21,0.00019178,2]
[313080016,1706727039136,-500.0,0.00019178,2]
[313080017,1706727039145,-986.52,0.00019178,2]
[313080018,1706727039154,-500.0,0.00019178,2]
[313080019,1706727039164,-500.0,0.00019178,2]
[313080020,1706727039173,-166.109928,0.00019178,2]
[313080021,1706727039182,-166.109927,0.00019178,2]
[313080022,1706727039191,-156791.30111242,0.00019452,2]
[313080023,1706727039200,-611.23585915,0.00019452,2]
[313080024,1706727039210,-500.0,0.00019452,2]
[313080025,1706727039219,-500.0,0.00019452,2]
[313080026,1706727039228,-500.0,0.00019452,2]
[313080027,1706727039237,-500.0,0.00019452,2]
[313080028,1706727039247,-579.96,0.00019452,2]
[313080029,1706727039256,-500.0,0.00019452,2]
[313080030,1706727039265,-500.0,0.00019452,2]
[313080031,1706727039274,-500.0,0.00019452,2]
[313080032,1706727039283,-529.42,0.00019452,2]
[313080033,1706727039293,-534.97,0.00019452,2]
[313080034,1706727039305,-559.94,0.00019452,2]
[313080035,1706727039314,-2548.17,0.00019452,2]
[313080036,1706727039323,-500.0,0.00019452,2]
[313080037,1706727039332,-915.17,0.00019452,2]
[313080038,1706727039341,-500.0,0.00019452,2]
[313080039,1706727039352,-500.0,0.00019452,2]
[313080040,1706727039361,-874.19,0.00019452,2]
[313080041,1706727039370,-500.0,0.00019452,2]
[313080042,1706727039381,-500.0,0.00019452,2]
[313080043,1706727039390,-500.0,0.00019452,2]
[313080044,1706727039399,-500.0,0.00019452,2]
[313080045,1706727039412,-500.0,0.00019452,2]
[313080046,1706727039421,-500.0,0.00019452,2]
[313080047,1706727039431,-1024.19,0.00019452,2]
[313080048,1706727039440,-500.0,0.00019452,2]
[313080049,1706727039449,-500.0,0.00019452,2]
[313080050,1706727039458,-500.0,0.00019452,2]
[313080051,1706727039466,-500.0,0.00019452,2]
[313080052,1706727039476,-500.0,0.00019452,2]
[313080053,1706727039485,-500.0,0.00019452,2]
[313080054,1706727039494,-500.0,0.00019452,2]
[313080055,1706727039503,-500.0,0.00019452,2]
[313080056,1706727039513,-500.0,0.00019452,2]
[313080057,1706727039522,-500.0,0.00019452,2]
[313080058,1706727039531,-867.92,0.00019452,2]
[313080059,1706727039540,-1129.98,0.00019452,2]
[313080060,1706727039550,-592.95,0.00019452,2]
[313080061,1706727039559,-241.17774505,0.00019452,2]
[313080062,1706727039569,-1598.09,0.00019452,2]
[313080063,1706727039578,-1842.47,0.00019452,2]
[313080064,1706727039587,-424.25997704,0.00019452,2]
[313080065,1706727039596,-500.0,0.00019452,2]
[313080066,1706727039605,-500.0,0.00019452,2]
[313080067,1706727039614,-500.0,0.00019452,2]
[313080068,1706727039623,-500.0,0.00019452,2]
[313080069,1706727039631,-1201.57,0.00019452,2]
[313080070,1706727039641,-500.0,0.00019452,2]
[313080071,1706727039650,-500.0,0.00019452,2]
[313080072,1706727039658,-500.0,0.00019452,2]
[313080073,1706727039668,-500.0,0.00019452,2]
[313080074,1706727039678,-3102.95,0.00019452,2]
[313080075,1706727039687,-11937.9,0.00019452,2]
[313080076,1706727039696,-500.0,0.00019452,2]
[313080077,1706727039705,-500.0,0.00019452,2]
[313080078,1706727039714,-500.0,0.00019452,2]
[313080079,1706727039723,-1507.24,0.00019452,2]
[313080080,1706727039733,-500.0,0.00019452,2]
[313080081,1706727039742,-500.0,0.00019452,2]
[313080082,1706727039751,-250.07075875,0.00019452,2]
[313080083,1706727039760,-521.76,0.00019452,2]
[313080084,1706727039770,-1526.78,0.00019452,2]
[313080085,1706727039780,-500.0,0.00019452,2]
[313080086,1706727039789,-6217.69,0.00019452,2]
[313080087,1706727039798,-860.62,0.00019452,2]
[313080088,1706727039807,-1008.78,0.00019452,2]
[313080089,1706727039816,-2014.55,0.00019452,2]
[313080090,1706727039826,-2387.77,0.00019452,2]
[313080091,1706727039834,-671.64,0.00019452,2]
[313080092,1706727039843,-2186.66,0.00019452,2]
[313080093,1706727039853,-6294.19,0.00019452,2]
[313080095,1706727039862,-2546.05,0.00019452,2]
[313080096,1706727039871,-1283.91,0.00019452,2]
[313080097,1706727039881,-942.49,0.00019452,2]
[313080098,1706727039890,-595.43,0.00019452,2]
[313080099,1706727039900,-1069.46,0.00019452,2]
[313080100,1706727039910,-500.0,0.00019452,2]
[313080101,1706727039919,-9217.21,0.00019452,2]
[313080102,1706727039928,-500.0,0.00019452,2]
[313080103,1706727039937,-986.52,0.00019452,2]
[313080104,1706727039946,-500.0,0.00019452,2]
[313080105,1706727039955,-500.0,0.00019726,2]
[313080106,1706727039965,-216.28260831,0.00019726,2]
[313080107,1706727039974,-500.0,0.00019726,2]
[313080108,1706727039983,-310.15523794,0.00019726,2]
[313080109,1706727039992,-579.96,0.00019726,2]
[313080110,1706727040001,-500.0,0.00019726,2]
[313080111,1706727040010,-500.0,0.00019726,2]
[313080112,1706727040019,-331.03874954,0.00019726,2]
[313080113,1706727040029,-529.42,0.00019726,2]
[313080115,1706727040038,-534.97,0.00019726,2]
[313080116,1706727040048,-559.94,0.00019726,2]
[313080117,1706727040057,-2548.17,0.00019726,2]
[313080118,1706727040066,-500.0,0.00019726,2]
[313080119,1706727040075,-915.17,0.00019726,2]
[313080120,1706727040085,-500.0,0.00019726,2]
[313080121,1706727040094,-500.0,0.00019726,2]
[313080122,1706727040103,-874.19,0.00019726,2]
[313080123,1706727040112,-500.0,0.00019726,2]
[313080124,1706727040121,-500.0,0.00019726,2]
[313080125,1706727040130,-500.0,0.00019726,2]
[313080126,1706727040139,-1024.19,0.00019726,2]
[313080127,1706727040149,-500.0,0.00019726,2]
[313080128,1706727040159,-500.0,0.00019726,2]
[313080129,1706727040169,-423.32,0.00019726,2]
[313080130,1706727040178,-500.0,0.00019726,2]
[313080131,1706727040187,-500.0,0.00019726,2]
[313080132,1706727040196,-500.0,0.00019726,2]
[313080133,1706727040205,-500.0,0.00019726,2]
[313080134,1706727040215,-500.0,0.00019726,2]
[313080135,1706727040224,-500.0,0.00019726,2]
[313080136,1706727040233,-867.92,0.00019726,2]
[313080137,1706727040243,-1129.98,0.00019726,2]
[313080138,1706727040252,-592.95,0.00019726,2]
[313080139,1706727040262,-1598.09,0.00019726,2]
[313080140,1706727040271,-1842.47,0.00019726,2]
[313080141,1706727040280,-500.0,0.00019726,2]
[313080142,1706727040289,-500.0,0.00019726,2]
[313080143,1706727040300,-500.0,0.00019726,2]
[313080144,1706727040311,-500.0,0.00019726,2]
[313080145,1706727040320,-1201.57,0.00019726,2]
[313080146,1706727040329,-500.0,0.00019726,2]
[313080147,1706727040416,-500.0,0.00019726,2]
[313080148,1706727040426,-500.0,0.00019726,2]
[313080149,1706727040435,-500.0,0.00019726,2]
[313080150,1706727040445,-3102.95,0.00019726,2]
[313080151,1706727040454,-11937.9,0.00019726,2]
[313080152,1706727040463,-373.70565358,0.00019726,2]
[313080153,1706727040473,-500.0,0.00019726,2]
[313080154,1706727040482,-500.0,0.00019726,2]
[313080155,1706727040492,-1507.24,0.00019726,2]
[313080156,1706727040501,-500.0,0.00019726,2]
[313080157,1706727040510,-500.0,0.00019726,2]
[313080158,1706727040519,-521.76,0.00019726,2]
[313080159,1706727040529,-1526.78,0.00019726,2]
[313080160,1706727040538,-500.0,0.00019726,2]
[313080161,1706727040547,-6217.69,0.00019726,2]
[313080162,1706727040556,-860.62,0.00019726,2]
[313080163,1706727040565,-1008.78,0.00019726,2]
[313080164,1706727040574,-2014.55,0.00019726,2]
[313080165,1706727040583,-2387.77,0.00019726,2]
[313080166,1706727040592,-671.64,0.00019726,2]
[313080167,1706727040601,-2186.66,0.00019726,2]
[313080168,1706727040610,-6294.19,0.00019726,2]
[313080169,1706727040619,-2546.05,0.00019726,2]
[313080170,1706727040628,-1283.91,0.00019726,2]
[313080171,1706727040637,-942.49,0.00019726,2]
[313080172,1706727040646,-595.43,0.00019726,2]
[313080173,1706727040655,-1069.46,0.00019726,2]
[313080174,1706727040666,-500.0,0.00019726,2]
[313080175,1706727040676,-9217.21,0.00019726,2]
[313080176,1706727040685,-500.49854135,0.00019726,2]
[313080177,1706727040694,-986.52,0.00019726,2]
[313080178,1706727040703,-500.0,0.00019726,2]
[313080179,1706727040712,-1000.0300009,0.00019965,2]
[313080180,1706727040722,-310.01705587,0.0002,2]
[313080181,1706727040731,-1200.08348294,0.0002,2]
[313080182,1706727040740,-323.57048434,0.0002,2]
[313080183,1706727040749,-44380.68568654,0.0002,2]
[313080184,1706727040759,-178.21239998,0.0002,2]
[313080185,1706727040768,-500.0,0.0002,2]
[313080186,1706727040777,-200.0,0.0002,2]
[313080187,1706727040786,-155.01550155,0.0002,2]
[313080188,1706727040795,-500.0,0.0002,2]
[313080189,1706727040804,-300.0,0.0002,2]
[313080190,1706727040813,-155.01860223,0.0002,2]
[313080191,1706727040822,-679.86163762,0.0002,2]
[313080192,1706727040831,-2087.09739776,0.0002,2]
[313080193,1706727040840,-579.96,0.0002,2]
[313080194,1706727040849,-500.0,0.0002,2]
[313080195,1706727040858,-500.0,0.0002,2]
[313080196,1706727040867,-529.42,0.0002,2]
[313080197,1706727040876,-534.97,0.0002,2]
[313080198,1706727040885,-559.94,0.0002,2]
[313080199,1706727040894,-2548.17,0.0002,2]
[313080200,1706727040904,-372.95353061,0.0002,2]
[313080201,1706727040913,-915.17,0.0002,2]
[313080202,1706727040923,-500.0,0.0002,2]
[313080203,1706727040931,-500.0,0.0002,2]
[313080204,1706727040940,-874.19,0.0002,2]
[313080205,1706727040951,-500.0,0.0002,2]
[313080206,1706727040963,-500.0,0.0002,2]
[313080207,1706727040972,-500.0,0.0002,2]
[313080208,1706727040980,-1024.19,0.0002,2]
[313080209,1706727040989,-500.0,0.0002,2]
[313080210,1706727040998,-500.0,0.0002,2]
[313080211,1706727041007,-500.0,0.0002,2]
[313080212,1706727041017,-500.0,0.0002,2]
[313080213,1706727041025,-500.0,0.0002,2]
[313080214,1706727041035,-534.97764921,0.0002,2]
[313080215,1706727041044,-500.0,0.0002,2]
[313080216,1706727041053,-500.0,0.0002,2]
[313080217,1706727041061,-867.92,0.0002,2]
[313080218,1706727041071,-1129.98,0.0002,2]
[313080219,1706727041080,-592.95,0.0002,2]
[313080220,1706727041089,-1598.09,0.0002,2]
[313080221,1706727041098,-1842.47,0.0002,2]
[313080222,1706727041107,-500.0,0.0002,2]
[313080223,1706727041116,-500.0,0.0002,2]
[313080224,1706727041125,-500.0,0.0002,2]
[313080225,1706727041134,-500.0,0.0002,2]
[313080226,1706727041143,-1201.57,0.0002,2]
[313080227,1706727041152,-500.0,0.0002,2]
[313080228,1706727041163,-500.0,0.0002,2]
[313080229,1706727041171,-500.0,0.0002,2]
[313080230,1706727041181,-500.0,0.0002,2]
[313080231,1706727041189,-3102.95,0.0002,2]
[313080232,1706727041198,-11937.9,0.0002,2]
[313080233,1706727041208,-500.0,0.0002,2]
[313080234,1706727041217,-500.0,0.0002,2]
[313080235,1706727041226,-1507.24,0.0002,2]
[313080236,1706727041235,-500.0,0.0002,2]
[313080237,1706727041244,-500.0,0.0002,2]
[313080238,1706727041253,-521.76,0.0002,2]
[313080239,1706727041262,-1526.78,0.0002,2]
[313080240,1706727041271,-500.0,0.0002,2]
[313080241,1706727041280,-4789.48048262,0.0002,2]
[313080242,1706727041309,-1428.20951738,0.0002,2]
[313080243,1706727041318,-860.62,0.0002,2]
[313080244,1706727041327,-1008.78,0.0002,2]
[313080245,1706727041336,-1587.75600435,0.0002,2]
[313080342,1706727045771,-980.14,0.00019178,2]
[313080344,1706727045780,-416.55257892,0.00019178,2]
[313080425,1706727244685,661.66134791,0.000125,2]
[313080426,1706727261862,3102.92579872,0.00021,7]
[313080427,1706727262867,1000.0,0.00022,20]
[313080511,1706728133398,-1764.73099551,0.0001631,2]
[313080512,1706728133423,-1483.6482494,0.00018177,2]
[313080513,1706728133449,-4350.0217506,0.00018177,2]
[313080659,1706728237874,-13261.95075509,0.00019078,2]
[313080660,1706728237884,-500.0,0.00019175,2]
[313080661,1706728237893,-4924.15457862,0.00019176,2]
[313080662,1706728237902,-4616.84712396,0.00019176,2]
[313080663,1706728237911,-453.08497735,0.00019176,2]
[313080664,1706728237921,-155.04960279,0.00019176,2]
[313080665,1706728237930,-366.29145913,0.00019176,2]
[313080666,1706728237939,-12046.0,0.00019176,2]
[313080667,1706728237949,-5092.43181338,0.00019176,2]
[313080668,1706728237957,-2106.9014739,0.00019176,2]
[313080669,1706728237966,-8120.904127,0.00019176,2]
[313080670,1706728237975,-518.24864605,0.00019176,2]
[313080671,1706728237984,-243.43578923,0.00019176,2]
[313080673,1706728237993,-1032.02745041,0.00019176,2]
[313080675,1706728238002,-1996.50298693,0.00019176,2]
[313080676,1706728238011,-155.01550155,0.00019177,3]
[313080678,1706728238020,-10555.9279154,0.00019177,2]
[313080680,1706728238029,-500.0,0.00019178,2]
[313080681,1706728238039,-500.0,0.00019178,2]
[313080682,1706728238048,-500.0,0.00019178,2]
[313080683,1706728238057,-500.0,0.00019178,2]
[313080684,1706728238066,-500.0,0.00019178,2]
[313080685,1706728238075,-500.0,0.00019178,2]
[313080686,1706728238085,-500.0,0.00019178,2]
[313080687,1706728238094,-500.0,0.00019178,2]
[313080688,1706728238102,-500.0,0.00019178,2]
[313080689,1706728238111,-874.32,0.00019178,2]
[313080690,1706728238121,-500.0,0.00019178,2]
[313080691,1706728238131,-500.0,0.00019178,2]
[313080692,1706728238140,-500.0,0.00019178,2]
[313080693,1706728238150,-500.0,0.00019178,2]
[313080694,1706728238159,-500.0,0.00019178,2]
[313080695,1706728238169,-500.0,0.00019178,2]
[313080696,1706728238178,-500.0,0.00019178,2]
[313080697,1706728238186,-500.0,0.00019178,2]
[313080698,1706728238195,-241.17774505,0.00019178,2]
[313080699,1706728238205,-1531.5,0.00019178,2]
[313080700,1706728238214,-500.0,0.00019178,2]
[313080701,1706728238223,-500.0,0.00019178,2]
[313080702,1706728238232,-500.0,0.00019178,2]
[313080703,1706728238241,-542.32133494,0.00019178,2]
[313080704,1706728238252,-500.0,0.00019178,2]
[313080705,1706728238260,-500.0,0.00019178,2]
[313080706,1706728238269,-500.0,0.00019178,2]
[313080707,1706728238278,-500.0,0.00019178,2]
[313080708,1706728238287,-2442.0,0.00019178,2]
[313080709,1706728238297,-500.0,0.00019178,2]
[313080710,1706728238307,-500.0,0.00019178,2]
[313080711,1706728238317,-577.72132354,0.00019178,2]
[313080712,1706728238327,-500.0,0.00019178,2]
[313080713,1706728238337,-877.04,0.00019178,2]
[313080714,1706728238346,-513.93419891,0.00019178,2]
[313080715,1706728238355,-500.0,0.00019178,2]
[313080716,1706728238364,-500.0,0.00019178,2]
[313080717,1706728238373,-500.0,0.00019178,2]
[313080718,1706728238382,-500.0,0.00019178,2]
[313080719,1706728238392,-500.0,0.00019178,2]
[313080720,1706728238401,-500.0,0.00019178,2]
[313080721,1706728238411,-500.0,0.00019178,2]
[313080722,1706728238421,-489.10048454,0.00019178,2]
[313080723,1706728238432,-500.0,0.00019178,2]
[313080724,1706728238442,-372.85777824,0.00019178,2]
[313080725,1706728238451,-942.49,0.00019178,2]
[313080726,1706728238460,-642.3454458,0.00019178,2]
[313080727,1706728238469,-500.0,0.00019178,2]
[313080728,1706728238478,-500.0,0.00019178,2]
[313080729,1706728238488,-1069.96,0.00019178,2]
[313080730,1706728238497,-500.0,0.00019178,2]
[313080731,1706728238505,-500.0,0.00019178,2]
[313080732,1706728238515,-568.35400767,0.00019178,2]
[313080733,1706728238523,-500.0,0.00019178,2]
[313080734,1706728238532,-500.0,0.00019178,2]
[313080735,1706728238542,-500.0,0.00019178,2]
[313080736,1706728238550,-939.3,0.00019178,2]
[313080737,1706728238561,-500.0,0.00019178,2]
[313080738,1706728238570,-500.0,0.00019178,2]
[313080739,1706728238579,-500.0,0.00019178,2]
[313080740,1706728238588,-553.73391012,0.00019178,2]
[313080741,1706728238695,-500.0,0.00019178,2]